bitfinex/quotes_ETHUSD_20251110
["timestamp","ask_amount","ask_price","bid_price","bid_amount"]
[1762767125091,0.26061958,3610.8,3610.7,2.76948608]
[1762767125610,0.34941958,3610.8,3610.7,2.76948608]
[1762767125778,0.34941958,3610.8,3610.6,0.73957828]
[1762767125976,0.35031958,3610.7,3610.6,3.50920105]
[1762767126814,0.35031958,3610.7,3610.6,0.73957828]
[1762767127609,0.35031958,3610.7,3610.6,3.50920105]
[1762767128192,0.35031958,3610.7,3610.6,2.76962277]
[1762767129626,0.34941958,3610.7,3610.6,2.76962277]
[1762767129828,0.34941958,3610.7,3610.6,3.23282277]
[1762767129829,0.25871958,3610.7,3610.6,3.23282277]
[1762767130144,0.25871958,3610.7,3610.6,5.43513985]
[1762767130494,0.25871958,3610.7,3610.6,4.98263985]
[1762767131110,0.25871958,3610.7,3610.6,5.43513985]
[1762767131432,0.25871958,3610.7,3610.6,4.98263985]
[1762767132835,0.25871958,3610.7,3610.6,3.75550797]
[1762767133051,0.35031958,3610.7,3610.5,0.1984]
[1762767133204,0.26141958,3610.6,3610.5,2.96809948]
[1762767133401,0.25871958,3610.6,3610.5,2.76969948]
[1762767133635,0.25961958,3610.6,3610.5,3.75558468]
[1762767133840,0.35211958,3610.6,3610.5,0.9858852]
[1762767134016,0.35211958,3610.6,3610.4,0.74146954]
[1762767134203,0.35211958,3610.5,3610.4,0.74146954]
[1762767134406,0.35211958,3610.5,3610.4,2.7697762]
[1762767134407,0.35301958,3610.5,3610.4,2.7697762]
[1762767135025,0.25961958,3610.5,3610.2,0.9858852]
[1762767135352,0.0925,3610.3,3610.2,2.76992964]
[1762767135521,0.35121958,3610.3,3610.2,2.76992964]
[1762767135720,0.1837,3610.9,3610.1,2.73853981]
[1762767135721,0.4581,3610.7,3610.1,2.73853981]
[1762767135923,0.25920089,3610.6,3610.5,3.51088034]
[1762767136640,0.35000089,3610.6,3610.5,2.76969948]
[1762767136953,0.34530089,3610.6,3610.3,0.98824114]
[1762767137103,0.25920089,3610.5,3610.4,2.76971226]
[1762767137307,0.25920089,3610.5,3610.3,3.75806967]
[1762767137615,0.34530089,3610.4,3610.3,3.75806967]
[1762767138224,0.25920089,3610.4,3610.3,4.22126967]
[1762767138612,0.25920089,3610.4,3610.3,3.75806967]
[1762767138812,0.34530089,3610.4,3610.3,0.98824114]
[1762767139027,0.80510089,3610.4,3610.3,0.7410941]
[1762767139724,0.5459,3610.4,3610.3,0.7430941]
[1762767140131,0.5459,3610.4,3610.3,3.51294702]
[1762767140338,0.34534274,3610.4,3610.3,3.5131168]
[1762767140533,0.0861,3610.4,3610.3,2.77185292]
[1762767141048,0.34534078,3610.4,3610.3,2.77185292]
[1762767141219,0.80514078,3610.4,3610.3,0.74338203]
[1762767141943,0.25924078,3610.4,3610.3,3.51323495]
[1762767142131,0.71196158,3610.4,3610.3,0.002]
[1762767142337,0.71196158,3610.4,3610.3,0.74350281]
[1762767142555,0.71196158,3610.4,3610.3,2.77185292]
[1762767142918,0.71196158,3610.4,3610.3,0.002]
[1762767143245,0.25926158,3610.4,3610.3,2.77185292]
[1762767144234,0.25846158,3610.4,3610.3,2.77185292]
[1762767144757,0.25846158,3610.4,3610.3,3.23505292]
[1762767144949,0.25846158,3610.4,3610.3,4.47035509]
[1762767146271,0.25846158,3610.4,3610.3,5.45859623]
[1762767146424,0.25846158,3610.4,3610.3,4.22329406]
[1762767146620,0.25846158,3610.4,3610.3,4.67419406]
[1762767146956,0.25846158,3610.4,3610.3,4.22329406]
[1762767147152,0.25846158,3610.4,3610.3,4.67419406]
[1762767148066,0.25846158,3610.4,3610.3,3.68595292]
[1762767148218,0.25846158,3610.4,3610.3,7.92737128]
[1762767148420,0.25846158,3610.4,3610.3,8.37827128]
[1762767149656,0.25846158,3610.4,3610.3,10.62622442]
[1762767149871,0.1884,3611.4,3610.3,9.85709909]
[1762767150094,0.1884,3611.4,3611.0,2.76929473]
[1762767150299,0.1884,3611.4,3610.9,2.76939267]
[1762767150480,0.1884,3611.4,3610.9,2.76936948]
[1762767150683,0.0689,3611.0,3610.9,2.76936948]
[1762767150993,0.0689,3611.0,3610.8,0.74091156]
[1762767151194,0.6743,3610.9,3610.7,0.74091156]
[1762767151385,0.6695,3610.9,3610.7,0.74091156]
[1762767151556,0.5555,3610.8,3610.7,0.74091156]
[1762767153095,0.1829,3610.9,3610.7,0.74091156]
[1762767153302,0.1829,3610.9,3610.8,0.74091156]
[1762767153672,0.6695,3610.9,3610.8,0.74091156]
[1762767153901,0.1884,3611.4,3610.8,0.74091156]
[1762767154222,0.675,3611.4,3610.9,3.51073991]
[1762767154831,0.675,3611.4,3610.9,0.74135501]
[1762767155009,0.675,3611.4,3610.9,3.51073149]
[1762767155200,0.675,3611.4,3610.9,0.74135501]
[1762767155401,0.0689,3611.0,3610.9,0.74149427]
[1762767155726,2.83821597,3611.0,3610.9,3.87]
[1762767155916,3.32061597,3611.0,3610.9,3.87]
[1762767156112,3.58004016,3611.0,3610.9,3.87]
[1762767159932,0.32832419,3611.0,3610.9,3.87]
[1762767160814,0.33242419,3611.0,3610.9,4.61149427]
[1762767161002,0.81072419,3611.0,3610.9,3.87]
[1762767161438,0.81072419,3611.0,3610.8,3.87]
[1762767161635,0.25942419,3610.9,3610.8,3.87]
[1762767161850,0.33642419,3610.9,3610.8,3.87]
[1762767162155,0.99362419,3610.9,3610.8,3.87]
[1762767162359,0.99362419,3610.9,3610.8,4.61149427]
[1762767162733,0.99362419,3610.9,3610.8,3.87]
[1762767164138,4.25764432,3610.9,3610.8,3.87]
[1762767164462,7.02703699,3610.9,3610.8,3.87]
[1762767165320,3.76301686,3610.9,3610.8,3.87]
[1762767165827,0.99362419,3610.9,3610.8,3.87]
[1762767166229,3.76301686,3610.9,3610.8,3.87]
[1762767166439,0.99362419,3610.9,3610.8,3.87]
[1762767167168,3.76301686,3610.9,3610.8,3.87]
[1762767167464,3.76301686,3610.9,3610.7,2.096]
[1762767167465,0.99362419,3610.9,3610.7,2.096]
[1762767167660,0.75082419,3610.8,3610.7,2.096]
[1762767168167,0.75002419,3610.8,3610.7,2.096]
[1762767169667,3.51949355,3610.8,3610.7,2.096]
[1762767170367,8.04322568,3610.8,3610.7,2.096]
[1762767174030,8.04322568,3610.8,3610.7,2.08804]
[1762767181905,5.27375632,3610.8,3610.7,2.08804]
[1762767182114,8.04322568,3610.8,3610.7,2.08804]
[1762767183130,4.77920555,3610.8,3610.7,2.08804]
[1762767183411,8.04322568,3610.8,3610.7,2.08804]
[1762767184231,7.55662568,3610.8,3610.7,2.08804]
[1762767186315,8.03372568,3610.8,3610.7,2.08804]
[1762767188327,2.7697762,3610.4,3610.3,0.002]
[1762767188530,11.69355665,3610.4,3610.3,0.002]
[1762767188700,11.77725665,3610.4,3610.3,0.002]
[1762767188900,8.51323652,3610.4,3610.3,0.002]
[1762767190431,11.77725665,3610.4,3610.3,0.002]
[1762767190618,11.92195743,3610.4,3610.3,0.002]
[1762767190990,2.77031332,3609.7,3609.6,0.002]
[1762767191329,8.69097364,3609.7,3609.6,0.002]
[1762767191552,9.16507364,3609.7,3609.6,0.002]
[1762767192251,9.16427364,3609.7,3609.6,0.002]
[1762767194617,3.18074758,3609.4,3609.3,1e-08]
[1762767194924,11.88292403,3609.4,3609.3,1e-08]
[1762767195126,12.36002403,3609.4,3609.3,1e-08]
[1762767195540,12.36002403,3609.4,3609.2,0.002]
[1762767195541,4.43583634,3609.3,3609.2,0.002]
[1762767195739,5.24566053,3609.3,3609.2,0.002]
[1762767195959,9.16468066,3609.3,3609.2,0.002]
[1762767197663,12.42870079,3609.3,3609.2,0.002]
[1762767201946,9.16468066,3609.3,3609.2,0.002]
[1762767204833,4.16384853,3609.3,3609.2,0.002]
[1762767205152,0.25942419,3609.3,3609.2,0.957]
[1762767205326,0.91442419,3609.3,3609.2,0.957]
[1762767205922,0.25942419,3609.3,3609.2,0.957]
[1762767206134,0.25942419,3609.3,3609.2,4.119959]
[1762767206638,0.655,3609.9,3609.6,2.77035053]
[1762767206838,0.2578878,3609.8,3609.6,2.77035053]
[1762767207052,0.655,3610.2,3609.7,3.26058811]
[1762767207255,0.25786803,3610.1,3609.8,2.7702314]
[1762767207460,0.25786803,3610.0,3609.8,3.2605314]
[1762767207757,0.25786803,3609.9,3609.8,2.7702314]
[1762767207933,1.914712,3611.0,3610.7,0.4647]
[1762767208132,0.25888198,3610.8,3610.2,2.76992673]
[1762767208319,0.25788198,3610.7,3610.3,2.76985292]
[1762767208525,0.25788198,3610.6,3610.3,3.26015292]
[1762767208856,0.25788198,3610.5,3610.4,0.4903]
[1762767209238,0.25788198,3610.5,3610.4,0.955]
[1762767209759,0.25788198,3610.5,3610.4,3.7247762]
[1762767210158,0.25788198,3610.5,3610.4,0.955]
[1762767211068,0.25788198,3610.5,3610.4,3.7247762]
[1762767211289,0.25788198,3610.5,3610.4,4.39252612]
[1762767211494,0.001,3610.8,3610.7,2.76954607]
[1762767211669,0.25881225,3610.8,3610.7,3.23424607]
[1762767211869,0.25881225,3610.8,3610.7,0.955]
[1762767212177,0.25881225,3610.8,3610.7,0.4647]
[1762767212374,0.25881225,3610.8,3610.7,3.23424607]
[1762767212580,0.25881225,3610.8,3610.7,0.955]
[1762767213736,0.25881225,3610.8,3610.7,3.72454607]
[1762767214270,0.25881225,3610.8,3610.7,0.955]
[1762767214433,0.25881225,3610.8,3610.7,3.72454607]
[1762767214966,0.25881225,3610.8,3610.7,0.955]
[1762767215168,0.001,3610.8,3610.3,0.4903]
[1762767215337,0.25781225,3610.7,3610.0,0.4903]
[1762767215536,0.2367,3610.8,3610.1,0.93191225]
[1762767215537,0.25781225,3610.6,3610.1,0.93191225]
[1762767215841,0.25781225,3610.5,3610.2,2.76990281]
[1762767216163,0.6758,3610.8,3610.3,0.4647]
[1762767216164,0.25701225,3610.4,3610.3,0.4647]
[1762767216355,0.1815,3610.8,3610.3,0.4647]
[1762767216356,2.95097608,3610.8,3610.3,0.4647]
[1762767217072,0.6758,3610.8,3610.3,0.4647]
[1762767217868,3.44528355,3610.8,3610.3,0.4647]
[1762767218067,2.95098355,3610.8,3610.3,0.4647]
[1762767218274,3.44528355,3610.8,3610.3,0.4647]
[1762767218657,0.0564,3610.4,3610.1,0.1828]
[1762767218973,0.0564,3610.4,3609.9,3.26040672]
[1762767219172,0.0564,3610.4,3610.0,2.7700639]
[1762767219379,0.0564,3610.4,3610.1,2.76999106]
[1762767219542,0.4943,3610.7,3610.1,3.26029106]
[1762767219871,0.4943,3610.7,3610.3,0.4647]
[1762767220034,0.1815,3610.8,3610.3,0.4647]
[1762767220347,2.76957175,3610.7,3610.3,0.4647]
[1762767221975,4.70500529,3610.8,3610.3,0.4647]
[1762767222373,1.935512,3610.8,3610.3,0.4647]
[1762767222671,2.76954767,3610.7,3610.3,0.4647]
[1762767222897,3.26384767,3610.7,3610.3,0.4647]
[1762767223384,3.26384767,3610.7,3610.0,0.4903]
[1762767223558,3.26384767,3610.7,3610.0,3.26038133]
[1762767223754,2.76963789,3610.6,3610.0,0.4903]
[1762767224279,3.26385695,3610.7,3610.0,3.26037086]
[1762767224876,3.26385695,3610.7,3610.1,2.77000022]
[1762767225180,3.26385695,3610.7,3610.0,3.26037076]
[1762767225604,3.26385695,3610.7,3610.1,2.77000046]
[1762767225785,0.4943,3610.7,3610.1,2.77000046]
[1762767226109,0.001,3610.8,3610.2,0.4903]
[1762767226401,4.03019387,3610.8,3610.2,3.26022954]
[1762767226566,0.001,3610.8,3610.2,0.4903]
[1762767226770,0.001,3610.8,3610.3,3.26008095]
[1762767226966,1.260712,3610.8,3610.3,2.76978095]
[1762767227174,1.260712,3610.8,3610.3,0.4903]
[1762767227507,4.03018292,3610.8,3610.3,0.4903]
[1762767227705,1.260712,3610.8,3610.3,0.4903]
[1762767228002,1.260712,3610.8,3610.3,3.26013417]
[1762767228171,0.25782591,3610.7,3610.3,0.4903]
[1762767228368,0.25782591,3610.6,3610.4,0.4903]
[1762767228601,2.77047823,3610.8,3610.4,0.4903]
[1762767228602,0.25782591,3610.5,3610.4,0.4903]
[1762767228974,0.25782591,3610.5,3610.4,0.9808]
[1762767229517,0.25782591,3610.5,3610.4,3.7505762]
[1762767229679,0.25799297,3610.7,3610.4,1.95945715]
[1762767229874,0.25799297,3610.7,3609.8,3.26612985]
[1762767229875,0.25798539,3610.6,3610.5,3.26789948]
[1762767230100,0.25798149,3610.7,3610.6,2.76962277]
[1762767230274,0.25798264,3610.7,3610.6,3.26782277]
[1762767230612,0.25798264,3610.7,3610.6,3.75832277]
[1762767232306,0.25798264,3610.7,3610.6,0.9887]
[1762767232511,0.25798264,3610.7,3610.6,3.75832277]
[1762767233587,0.25798264,3610.7,3610.6,4.09548483]
[1762767233993,0.25798264,3610.7,3610.6,3.75832277]
[1762767234190,0.25798264,3610.7,3610.6,0.9887]
[1762767234587,0.25798264,3610.7,3610.6,3.75832277]
[1762767236520,0.25798264,3610.7,3610.6,0.9887]
[1762767237114,0.25798264,3610.7,3610.6,3.75832277]
[1762767237621,0.33958264,3610.7,3610.3,0.73852083]
[1762767237785,0.25798264,3610.6,3610.3,3.23983655]
[1762767237983,0.0816,3610.7,3610.3,0.47]
[1762767237984,0.25798264,3610.5,3610.3,0.47]
[1762767238183,0.25798264,3610.4,3610.3,0.47]
[1762767238380,0.25798264,3610.4,3610.3,3.23985292]
[1762767238614,0.25798264,3610.4,3610.3,3.72935292]
[1762767239000,0.25798264,3610.4,3610.3,0.9595]
[1762767240222,0.25718264,3610.4,3610.3,3.72935292]
[1762767242189,0.25718264,3610.4,3610.3,0.4915]
[1762767242520,0.25718264,3610.4,3610.3,0.002]
[1762767242720,0.33878264,3610.4,3610.3,0.002]
[1762767243691,0.25718264,3610.4,3610.3,0.002]
[1762767243895,0.25718264,3610.4,3610.3,0.4915]
[1762767246621,0.25718264,3610.4,3610.3,3.72935292]
[1762767248234,0.25718264,3610.4,3610.3,4.48063284]
[1762767248442,0.25718264,3610.4,3610.3,5.93176213]
[1762767249147,0.25718264,3610.4,3610.3,6.31236307]
[1762767249296,0.25718264,3610.4,3610.3,4.83353526]
[1762767249724,0.25818264,3610.4,3610.3,4.83353526]
[1762767252433,0.001,3610.4,3610.3,4.83353526]
[1762767253131,1.455912,3611.9,3610.3,2.88225371]
[1762767253132,0.01,3611.9,3610.3,2.88225371]
[1762767253304,0.01,3611.9,3611.8,0.6822]
[1762767253503,0.26899963,3611.9,3611.8,3.91890258]
[1762767260226,0.01,3611.9,3611.8,3.91890258]
[1762767261346,0.01,3611.9,3611.8,7.78890258]
[1762767261854,0.01,3611.9,3611.8,5.59029052]
[1762767262065,0.01,3611.9,3611.8,8.32935288]
[1762767262272,0.01,3611.9,3611.8,8.32318094]
[1762767262476,0.01,3611.9,3611.8,7.58318974]
[1762767262656,0.01,3611.9,3611.8,7.96773234]
[1762767263280,0.01,3612.9,3612.8,2.76793622]
[1762767263425,0.01,3612.9,3612.8,6.80035969]
[1762767263628,0.01,3612.9,3612.8,7.65290229]
[1762767263862,0.01,3614.9,3613.8,2.76717029]
[1762767264166,0.01,3614.9,3613.8,7.10004274]
[1762767264167,0.0092,3613.9,3613.8,7.10004274]
[1762767264334,0.0092,3613.9,3613.8,8.55477313]
[1762767264724,0.0092,3613.9,3613.8,9.7898378]
[1762767265322,0.01,3614.9,3613.9,1.665216]
[1762767265529,0.01,3614.9,3614.8,6.70713463]
[1762767265762,0.01,3614.9,3614.8,7.71402669]
[1762767265936,0.01,3614.9,3614.8,7.84554809]
[1762767266826,0.01,3614.9,3614.8,4.57941824]
[1762767269028,0.01,3614.9,3614.8,1.81301346]
[1762767269234,0.01,3614.9,3614.8,1.1423]
[1762767269642,0.01,3614.9,3614.8,0.6746]
[1762767269940,0.01,3614.9,3612.2,2.97047042]
[1762767269941,0.7416,3614.9,3614.0,0.4677]
[1762767270251,2.76649865,3614.7,3614.0,0.4677]
[1762767270426,2.76664637,3614.5,3613.8,1.17943039]
[1762767270641,0.4574,3614.7,3613.5,0.83063032]
[1762767270844,2.76695457,3614.1,3613.4,0.4677]
[1762767271038,0.4574,3614.8,3613.4,0.44165443]
[1762767271243,2.76690915,3614.2,3613.4,0.44165443]
[1762767271439,2.76696713,3614.1,3613.4,0.44165443]
[1762767271744,3.22402385,3614.6,3613.4,0.44165443]
[1762767271943,0.1962,3614.9,3613.0,0.1849]
[1762767271944,0.0917,3613.5,3613.0,0.1849]
[1762767272255,0.0917,3613.5,3612.8,2.7679262]
[1762767272468,0.0917,3613.5,3612.8,3.2356262]
[1762767272785,2.76740621,3613.5,3612.7,2.9607014]
[1762767272971,2.76740621,3613.5,3612.8,2.76792789]
[1762767273169,2.76740621,3613.5,3612.8,0.5728788]
[1762767273481,3.22494794,3613.4,3612.3,3.0661315]
[1762767273658,0.0917,3612.9,3612.5,2.76815851]
[1762767274179,0.4537,3613.3,3612.5,0.4677]
[1762767274382,0.4537,3613.3,3612.2,0.1849]
[1762767274383,1.665216,3614.0,3612.2,0.1849]
[1762767274573,2.76783453,3613.0,3612.2,2.95329014]
[1762767275080,2.76783453,3613.0,3612.2,0.1849]
[1762767275081,0.1951,3612.9,3612.2,0.1849]
[1762767275280,2.76798777,3612.8,3612.1,0.01]
[1762767275440,2.76798777,3612.8,3612.1,2.77843958]
[1762767275647,0.6525,3612.9,3612.1,0.63075168]
[1762767275877,0.1951,3612.9,3612.3,2.76827871]
[1762767276086,0.1951,3612.9,3612.2,2.76838209]
[1762767276259,0.1951,3612.9,3612.1,0.4777]
[1762767276460,2.76801904,3612.7,3612.1,0.4777]
[1762767276655,3.42036744,3612.9,3612.2,0.45059392]
[1762767276882,2.76793622,3612.8,3612.1,0.01]
[1762767277082,3.42037182,3612.9,3612.1,2.77847064]
[1762767277285,0.1951,3613.2,3612.1,3.24617239]
[1762767277584,2.76778779,3613.0,3612.3,2.76830791]
[1762767277787,0.25641434,3612.9,3612.3,2.76830791]
[1762767278143,0.25641434,3612.9,3612.3,3.23600791]
[1762767278350,3.02427928,3612.9,3612.2,2.76839201]
[1762767278563,2.76786416,3612.9,3612.2,2.76839201]
[1762767278781,2.76793897,3612.8,3612.1,3.57704381]
[1762767279081,0.4574,3613.1,3612.1,0.34089194]
[1762767279273,0.25655108,3613.0,3612.2,0.4677]
[1762767279452,3.02439142,3613.0,3612.2,3.23607372]
[1762767279653,0.25655108,3612.9,3612.2,3.23607372]
[1762767279878,0.25655108,3612.9,3612.3,2.76830875]
[1762767280088,3.02441594,3612.9,3612.2,3.23608751]
[1762767280284,0.25655108,3612.8,3612.3,2.76830923]
[1762767280486,0.4574,3613.1,3612.3,2.76830923]
[1762767280792,2.76791961,3612.9,3612.2,3.87126963]
[1762767280993,0.25675762,3612.8,3612.2,3.87126963]
[1762767281673,0.25675762,3612.8,3612.3,2.76829168]
[1762767281873,0.25675762,3612.7,3612.3,2.76829168]
[1762767282075,2.76786448,3612.9,3612.3,2.76829168]
[1762767282258,0.25687478,3612.8,3612.3,2.76829168]
[1762767282584,0.25687478,3612.7,3612.3,2.76829168]
[1762767282881,2.76778851,3613.0,3612.3,2.76829168]
[1762767283186,0.2569992,3612.9,3612.5,2.76814479]
[1762767283386,0.2569992,3612.8,3612.7,2.76801284]
[1762767283566,2.76717852,3613.8,3612.7,2.76801284]
[1762767283883,2.76743238,3613.5,3612.8,7.10561612]
[1762767284054,4.02661225,3614.2,3612.9,2.76783583]
[1762767284055,0.25711337,3613.4,3612.9,2.76783583]
[1762767284255,0.25711337,3613.3,3613.0,0.02767783]
[1762767284483,0.25711337,3613.2,3613.0,1.20423833]
[1762767284684,4.02675588,3614.0,3613.1,0.1849]
[1762767284851,4.02675588,3614.0,3613.3,2.76754385]
[1762767284852,0.25715164,3613.9,3613.3,2.76754385]
[1762767285048,0.25715164,3613.8,3613.4,3.23514862]
[1762767285289,0.25715164,3613.7,3613.4,3.60804764]
[1762767285483,0.4574,3614.4,3613.5,0.4677]
[1762767285484,0.25715164,3613.6,3613.5,0.4677]
[1762767285893,0.25715164,3613.6,3613.5,0.4897]
[1762767286480,0.25715164,3613.6,3613.1,3.4202416]
[1762767286684,0.25715164,3613.5,3613.2,0.3729286]
[1762767286853,0.1842,3613.9,3613.4,0.4897]
[1762767287053,0.25723549,3613.8,3613.4,3.25717461]
[1762767287261,0.25723549,3613.7,3613.4,1.66243229]
[1762767287587,0.25723549,3613.6,3613.5,2.76737421]
[1762767288091,0.25723549,3613.6,3613.5,5.41766421]
[1762767288291,0.001,3613.9,3613.8,2.76717029]
[1762767288591,0.001,3613.9,3613.8,3.73861059]
[1762767288787,0.001,3613.9,3613.8,4.20481059]
[1762767290463,0.001,3613.9,3613.8,4.56437511]
[1762767291077,0.001,3613.9,3613.8,4.20481059]
[1762767292288,0.001,3613.9,3613.8,3.73861059]
[1762767292457,0.001,3613.9,3613.8,4.20481059]
[1762767293166,0.001,3613.9,3613.8,8.07481059]
[1762767294401,0.001,3613.9,3613.8,7.60861059]
[1762767294958,0.001,3613.9,3613.6,6.63726874]
[1762767294959,0.0596,3613.9,3613.6,6.63726874]
[1762767295164,0.0596,3613.9,3613.6,3.87]
[1762767295365,0.001,3613.9,3613.7,2.76724686]
[1762767295673,0.001,3613.9,3613.8,2.76717029]
[1762767295867,0.001,3613.9,3613.6,3.87]
[1762767296067,0.001,3613.9,3613.6,6.63730805]
[1762767296366,0.001,3613.9,3613.6,3.87]
[1762767296568,0.001,3613.9,3613.6,6.63726553]
[1762767296868,0.001,3613.9,3613.6,6.63729857]
[1762767297170,0.001,3613.9,3613.6,3.87]
[1762767297384,0.001,3613.9,3613.6,6.63730264]
[1762767297666,0.001,3613.9,3613.7,2.76724372]
[1762767297871,0.0637,3613.7,3613.3,1.09283273]
[1762767298177,0.1832,3613.8,3613.2,2.76761748]
[1762767298481,0.1832,3613.8,3613.1,2.7676558]
[1762767298780,2.95037182,3613.8,3613.1,2.7676558]
[1762767298976,2.76732393,3613.6,3613.0,4.3436]
[1762767299182,2.76732393,3613.6,3613.0,5.07686821]
[1762767299782,2.76732393,3613.6,3613.0,7.11136012]
[1762767300098,2.76732393,3613.6,3613.0,4.3436]
[1762767300293,0.2581498,3613.5,3613.0,7.84464743]
[1762767300506,0.2581498,3613.4,3613.0,5.97877845]
[1762767300671,0.2581498,3613.3,3613.0,5.07686821]
[1762767301008,0.2581498,3613.2,3613.1,2.7677064]
[1762767301608,0.2581498,3613.2,3613.1,9.18283759]
[1762767301768,0.001,3613.9,3613.8,2.76717029]
[1762767301969,0.25916169,3613.9,3613.8,4.6337044]
[1762767302210,0.01,3614.9,3614.8,2.76640478]
[1762767302408,0.01,3614.9,3614.8,3.90310478]
[1762767302608,0.01,3614.9,3614.8,5.06291318]
[1762767302910,0.01,3614.9,3614.8,5.17362649]
[1762767303128,0.01,3614.9,3614.8,2.40722171]
[1762767303417,0.01,3614.9,3614.8,0.4753]
[1762767304094,0.01,3614.9,3614.8,0.9489]
[1762767304481,0.01,3614.9,3614.8,3.71530478]
[1762767305473,0.01,3614.9,3614.8,4.97501678]
[1762767305675,0.01,3614.9,3614.8,5.40818482]
[1762767305932,0.01,3614.9,3614.8,7.69009399]
[1762767306186,0.01,3614.9,3614.8,7.04698152]
[1762767306388,0.09065938,3615.8,3615.7,3.17122018]
[1762767306625,0.09065938,3615.8,3615.7,9.04287653]
[1762767306935,0.1892,3617.7,3616.6,2.76496266]
[1762767307217,0.1892,3617.7,3616.8,3.42797502]
[1762767307624,0.1892,3617.7,3616.8,3.90157502]
[1762767307927,2.76365503,3618.4,3616.8,9.42495889]
[1762767307928,0.1951,3618.3,3616.8,9.42495889]
[1762767308072,0.1951,3618.3,3616.8,10.24798818]
[1762767308414,0.1951,3618.3,3616.8,12.01032916]
[1762767308581,0.1951,3618.6,3616.8,11.27797635]
[1762767308782,0.1951,3618.6,3616.8,12.25094824]
[1762767309396,0.1951,3618.6,3616.8,11.27797635]
[1762767309615,0.1951,3618.6,3616.8,10.96314883]
[1762767309917,0.1951,3618.6,3616.8,11.93612072]
[1762767310103,0.1951,3618.6,3616.8,10.96314883]
[1762767310414,0.4857,3618.7,3616.8,10.96314883]
[1762767310909,0.1951,3618.8,3616.8,10.96314883]
[1762767311113,0.4857,3618.5,3616.8,10.96314883]
[1762767311277,0.4857,3618.5,3616.8,11.69043258]
[1762767311478,0.4857,3617.4,3616.6,0.4857]
[1762767312136,0.0092,3616.9,3616.2,0.4736]
[1762767312534,0.0092,3616.9,3616.3,0.82994324]
[1762767312740,0.0092,3616.9,3616.3,3.59515704]
[1762767312966,0.0092,3616.9,3616.8,4.42414435]
[1762767313102,0.0092,3616.9,3616.8,6.25224198]
[1762767313305,0.0092,3616.9,3616.3,0.82994324]
[1762767313513,0.0092,3616.9,3616.3,1.30354324]
[1762767313805,0.0092,3616.9,3616.3,0.4736]
[1762767314017,0.2036,3616.9,3616.1,1.494]
[1762767314420,0.6893,3616.9,3616.1,1.494]
[1762767314621,0.6893,3616.9,3616.1,1.6434]
[1762767314838,0.4857,3616.8,3616.1,1.6434]
[1762767315339,0.0092,3616.9,3616.5,3.94884435]
[1762767315537,0.0092,3616.9,3616.2,0.4736]
[1762767315939,0.2036,3616.9,3616.2,0.4736]
[1762767316310,0.2036,3616.9,3616.1,0.1494]
[1762767317634,0.6893,3616.9,3616.1,0.1494]
[1762767317812,0.6893,3616.9,3615.7,0.1878]
[1762767318007,0.4857,3616.8,3615.7,0.1878]
[1762767318203,0.4857,3616.8,3615.5,0.4736]
[1762767318444,2.76510305,3616.6,3615.2,1.259712]
[1762767318640,2.76510473,3616.5,3615.3,0.44994226]
[1762767318842,0.2036,3616.9,3615.3,0.44994226]
[1762767318843,0.4857,3616.7,3615.3,0.44994226]
[1762767319041,2.76495147,3616.7,3614.9,0.1878]
[1762767319246,2.76538724,3616.2,3614.9,0.1878]
[1762767319744,0.4857,3616.1,3614.9,2.95412476]
[1762767319941,0.4857,3616.1,3615.1,1.259712]
[1762767320142,0.4857,3616.1,3615.2,0.59470757]
[1762767320943,0.4857,3616.1,3614.3,3.94884435]
[1762767320944,3.25113241,3616.1,3614.5,1.20088375]
[1762767321124,2.76549342,3616.0,3614.5,1.20088375]
[1762767321448,3.25119342,3616.0,3614.6,1.733312]
[1762767321646,0.6719,3615.9,3614.6,0.4736]
[1762767322145,0.1862,3615.9,3614.7,0.4736]
[1762767322350,0.6719,3615.9,3614.9,1.259712]
[1762767322647,0.6719,3615.9,3614.9,0.72938164]
[1762767322950,0.6719,3615.9,3614.9,1.98909364]
[1762767323341,0.6719,3615.9,3614.9,0.72938164]
[1762767323538,0.4857,3615.8,3614.8,0.002]
[1762767324648,0.4857,3615.8,3614.8,0.4756]
[1762767326225,0.4857,3615.8,3614.8,1.735312]
[1762767326443,0.4857,3615.8,3614.8,0.002]
[1762767326644,0.4857,3615.8,3614.8,0.4933]
[1762767327454,0.0637,3614.9,3614.8,0.002]
[1762767327634,3.25140579,3615.8,3614.8,0.002]
[1762767327635,0.4557,3615.4,3614.8,0.002]
[1762767328252,0.6419,3615.9,3614.8,0.002]
[1762767328458,0.6419,3615.9,3614.8,0.4933]
[1762767328625,0.6419,3615.9,3614.8,0.94524797]
[1762767328820,0.6419,3615.9,3614.8,0.4933]
[1762767329018,0.6419,3615.9,3614.8,0.002]
[1762767329222,0.6419,3615.9,3614.9,0.4913]
[1762767330748,0.4557,3615.8,3614.9,0.4913]
[1762767330934,3.22139747,3615.8,3614.8,0.002]
[1762767331338,0.4557,3615.7,3614.8,0.52669019]
[1762767331855,0.4557,3615.7,3614.8,1.01799019]
[1762767332172,0.1862,3615.9,3614.9,0.4913]
[1762767332825,0.6419,3615.9,3614.9,0.4913]
[1762767333624,3.4074876,3615.9,3614.9,0.4913]
[1762767333954,0.4557,3615.8,3614.9,0.79179859]
[1762767334156,0.1862,3615.9,3614.9,3.55807574]
[1762767334357,0.1862,3615.9,3615.0,0.4913]
[1762767334857,3.22139253,3615.8,3614.9,0.30049859]
[1762767335021,2.76572628,3615.7,3614.9,0.30049859]
[1762767335221,0.4557,3615.7,3614.9,0.30049859]
[1762767336778,2.76515586,3616.5,3614.9,0.30049859]
[1762767336779,0.1899,3616.7,3615.6,0.6457]
[1762767336957,0.1899,3616.7,3615.4,0.72728375]
[1762767337279,2.76532395,3616.3,3615.1,0.72728375]
[1762767337476,0.1899,3616.7,3614.9,0.72728375]
[1762767337477,0.4569,3615.2,3614.9,0.72728375]
[1762767337656,0.4569,3615.2,3614.8,0.002]
[1762767338329,0.4569,3615.2,3614.8,0.25002957]
[1762767338763,0.4569,3615.2,3614.8,0.002]
[1762767339564,0.4557,3616.0,3615.1,0.4598]
[1762767339726,2.76542393,3616.1,3615.1,0.4598]